Workbook

Sheet Vsebina
B14: Posvetovanje o predlogu popustov, multiplikatorjev in sezonskih faktorjev
B15: na podlagi 28. člena Uredbe Komisije (EU) 2017/460 z dne 16. marca 2017 o oblikovanju kodeksa omrežja o usklajenih tarifnih strukturah za plin
B19: Priloga 1
B20: ='Sezonski faktorji'!B3:F3 -> Določitev sezonskih faktorjev za tarifno obdobje 2021

Sheet Sezonski faktorji
B3: ="Določitev sezonskih faktorjev za tarifno obdobje "&F20+2 -> Določitev sezonskih faktorjev za tarifno obdobje 2021
B4: skladno s 15. členom UREDBE KOMISIJE (EU) 2017/460
B5: z dne 16. marca 2017 o oblikovanju kodeksa omrežja o usklajenih tarifnih strukturah za plin
B7: Parametri izračuna
E8: Vrednosti
B9: Multiplikatorji za kvartalne produkte zmogljivosti | E9: 1.4
B10: Multiplikatorji za mesečne produkte zmogljivosti (maksimalno 1,5) | E10: 1.45
B11: Multiplikatorji za dnevne produkte zmogljivosti (maksimalno 3) | E11: 2.75
B12: Multiplikatorji za znotraj-dnevne produkte zmogljivosti (maksimalno 3) | E12: 2.8
B13: Potenčni eksponent E (0 <= E <= 2) | E13: 1.5
B17: Povprečni urni pretok za vsak posamezen mesec [kWh]
B19: Plinski mesec | C19: Leto
C20: 2016 | D20: 2017 | E20: 2018 | F20: 2019 | G20: 2020*
B21: Januar | C21: 3503570.941 | D21: 4109500.851 | E21: 1934169.384 | F21: 2180330.413 | G21: 2720092.969
B22: Februar | C22: 3113581.452 | D22: 3561373.272 | E22: 2415538.382 | F22: 2047407.511 | G22: 2447765.704
B23: Marec | C23: 3050855.585 | D23: 2789539.776 | E23: 2155368.299 | F23: 1696178.797 | G23: 2275575
B24: April | C24: 2433620.863 | D24: 2458142.672 | E24: 1287681.948 | F24: 1782138.209 | G24: 1685596.5
B25: Maj | C25: 1961700.241 | D25: 2234459.567 | E25: 1117251.748 | F25: 1418603.086 | G25: 1492459.839
B26: Junij | C26: 2078703.325 | D26: 2372118.625 | E26: 1080306.089 | F26: 1195936.408 | G26: 1456843.5
B27: Julij | C27: 1356023.117 | D27: 2512083.774 | E27: 1080618.443 | F27: 1095000.701 | G27: 1380157.258
B28: Avgust | C28: 1939459.99 | D28: 2642508.276 | E28: 1065725.973 | F28: 1926345.776 | G28: 1367582.661
B29: September | C29: 2327988.398 | D29: 2425371.714 | E29: 1247158.291 | F29: 1809139.656 | G29: 1513449
B30: Oktober | C30: 2934093.264 | D30: 1822004.256 | E30: 1354084.006 | F30: 2075916.192 | G30: 1748417.661
B31: November | C31: 3323802.329 | D31: 1938260.558 | E31: 1624197.869 | F31: 2313216.822 | G31: 2110375.575
B32: December | C32: 3578220.202 | D32: 2438053.294 | E32: 1936662.439 | F32: 2369777.831 | G32: 2296484.891
B33: Povprečno | C33: =AVERAGE(C21:C32) -> 2633468.309 | D33: =AVERAGE(D21:D32) -> 2608618.053 | E33: 1524896.906 | F33: 1825832.617 | G33: 1874566.713
B35: * Del podatkov za leto 2020 določen na osnovi prognoziranih pretokov.
B38: Predpisan kalkulacijski postopek v skladu s členom 15 (odstavki 2 do 6)
B39: Opomba: Postopek izračuna sezonskih faktorjev za mesečne standardne produkte zmogljivosti za zagotovljeno zmogljivost temelji na prognoziranih pretokih.
B41: Člen 15.3a & b
B42: (a) "povprečni podatki o prognoziranih pretokih ali prognoziranih pogodbenih zmogljivostih, če se sezonski faktorji računajo za nekatere ali vse povezovalne točke;" & (b) "izračunane vrednosti iz točke (a) se seštejejo"
B44: Plinski mesec | C44: Prognoziran povprečni urni pretok v letu 2020 [kWh]
B45: Januar | C45: =G21 -> 2720092.969
B46: Februar | C46: =G22 -> 2447765.704
B47: Marec | C47: 2275575
B48: April | C48: 1685596.5
B49: Maj | C49: 1492459.839
B50: Junij | C50: 1456843.5
B51: Julij | C51: 1380157.258
B52: Avgust | C52: 1367582.661
B53: September | C53: 1513449
B54: Oktober | C54: 1748417.661
B55: November | C55: 2110375.575
B56: December | C56: 2296484.891
B57: Seštevek | C57: =SUM(C45:C56) -> 22494800.56
B59: Člen 15.3c
B60: "stopnja uporabe se izračuna tako, da se vsaka od izračunanih vrednosti iz točke (a) deli z izračunano vrednostjo iz točke (b);"
B63: Plinski mesec | C63: Stopnja uporabe | D63: Korekcija stopnje uporabe v primeru vrednosti 0
B64: Januar | C64: =C45/$C$57 -> 0.120920964 | D64: =IF(C45/$C$57=0,0.1,C45/$C$57) -> 0.120920964
B65: Februar | C65: =C46/$C$57 -> 0.1088147324 | D65: =IF(C46/$C$57=0,0.1,C46/$C$57) -> 0.1088147324
B66: Marec | C66: 0.1011600434 | D66: 0.1011600434
B67: April | C67: 0.07493271592 | D67: 0.07493271592
B68: Maj | C68: 0.06634688024 | D68: 0.06634688024
B69: Junij | C69: 0.06476356597 | D69: 0.06476356597
B70: Julij | C70: 0.06135450076 | D70: 0.06135450076
B71: Avgust | C71: 0.06079550062 | D71: 0.06079550062
B72: September | C72: 0.06727994747 | D72: 0.06727994747
B73: Oktober | C73: 0.07772541289 | D73: 0.07772541289
B74: November | C74: 0.09381614962 | D74: 0.09381614962
B75: December | C75: 0.1020895867 | D75: 0.1020895867
B78: Člen 15.3d
B79: "izračunane vrednosti iz točke (c) se pomnožijo z 12. Če so izračunane vrednosti enake nič, se, glede na to, kaj je nižje, spremenijo v 0,1 oziroma v najnižjo izračunano vrednost, ki ni enaka nič;"
B81: Plinski mesec | C81: Stopnja uporabe x 12
B82: Januar | C82: =IF(C64=0,MIN($D$64:$D$75),C64)*12 -> 1.451051568
B83: Februar | C83: 1.305776789
B84: Marec | C84: 1.21392052
B85: April | C85: 0.8991925911
B86: Maj | C86: 0.7961625629
B87: Junij | C87: 0.7771627916
B88: Julij | C88: 0.7362540092
B89: Avgust | C89: 0.7295460074
B90: September | C90: 0.8073593697
B91: Oktober | C91: 0.9327049547
B92: November | C92: 1.125793795
B93: December | C93: 1.22507504
B95: Člen 15.3e
B96: "izhodiščna stopnja ustreznih sezonskih faktorjev se izračuna tako, da se vsaka od izračunanih vrednosti iz točke (d) potencira z istim eksponentom, ki ne sme biti manjši od 0 in večji od 2;"
B98: Plinski mesec | C98: Sezonski faktor
B99: Januar | C99: =POWER(C82,$E$13) -> 1.747930942
B100: Februar | C100: =POWER(C83,$E$13) -> 1.49211885
B101: Marec | C101: 1.337474096
B102: April | C102: 0.8526662629
B103: Maj | C103: 0.7103994696
B104: Junij | C104: 0.6851221357
B105: Julij | C105: =POWER(C88,$E$13) -> 0.6317445573
B106: Avgust | C106: 0.6231305267
B107: September | C107: 0.725438056
B108: Oktober | C108: 0.9007752103
B109: November | C109: 1.194505837
B110: December | C110: 1.35595113
B112: Člen 15.3f
B113: "izračuna se aritmetična sredina zmnožkov izračunanih vrednosti iz točke (e) in multiplikator za mesečne standardne produkte zmogljivosti;"
B115: Plinski mesec | C115: Začetni sezonski faktor x multiplikator
C116: Mesečni | D116: Dnevni | E116: Znotraj dneva
B117: Januar | C117: =C99*$E$10 -> 2.534499866 | D117: =C99*$E$11 -> 4.806810091 | E117: =C99*$E$12 -> 4.894206638
B118: Februar | C118: =C100*$E$10 -> 2.163572333 | D118: =C100*$E$11 -> 4.103326838 | E118: =C100*$E$12 -> 4.17793278
B119: Marec | C119: 1.939337439 | D119: 3.678053763 | E119: 3.744927468
B120: April | C120: 1.236366081 | D120: 2.344832223 | E120: 2.387465536
B121: Maj | C121: 1.030079231 | D121: 1.953598541 | E121: 1.989118515
B122: Junij | C122: 0.9934270968 | D122: 1.884085873 | E122: 1.91834198
B123: Julij | C123: 0.9160296081 | D123: 1.737297533 | E123: 1.768884761
B124: Avgust | C124: 0.9035392638 | D124: 1.713608949 | E124: 1.744765475
B125: September | C125: 1.051885181 | D125: 1.994954654 | E125: 2.031226557
B126: Oktober | C126: 1.306124055 | D126: 2.477131828 | E126: 2.522170589
B127: November | C127: 1.732033463 | D127: 3.284891051 | E127: 3.344616343
B128: December | C128: 1.966129138 | D128: 3.728865607 | E128: 3.796663163
B129: Povprečje | C129: =AVERAGE(C117:C128) -> 1.48108523 | D129: =AVERAGE(D117:D128) -> 2.808954746 | E129: =AVERAGE(E117:E128) -> 2.86002665
B131: Člen 15.3g
B132: "izračunana vrednost iz točke (f) se primerja z razponom iz člena 13(1), kot sledi:
B133: (i) če je ta vrednost v tem razponu, je stopnja sezonskih faktorjev enaka ustreznim izračunanim vrednostim iz točke (e); (ii) če ta vrednost ni v razponu teh mejnih vrednosti, se uporablja točka (h);"
B135: Člen 15.3h
B136: "stopnja sezonskih faktorjev se izračuna kot zmnožek ustreznih izračunanih vrednosti iz točke (e), korekcijski faktor pa se izračuna:
B137: (i) če je izračunana vrednost iz točke (f) višja od 1,5, se korekcijski faktor izračuna tako, da se 1,5 deli s to vrednostjo; (ii) če je izračunana vrednost iz točke (f) nižja od 1, se korekcijski faktor izračuna tako, da se 1 deli s to vrednostjo.
C139: Mesečni | D139: Dnevni | E139: Znotraj dneva
B140: Korekcijski faktor | C140: =1.5/C129 -> 1.012770886 | D140: =3/D129 -> 1.068012934 | E140: =3/E129 -> 1.048941275
B142: Plinski mesec | C142: Sezonski faktor
C143: Mesečni | D143: Dnevni | E143: Znotraj dneva
B144: Januar | C144: =IF($C$129>1.5,C99*$C$140,C99) -> 1.747930942 | D144: =IF($D$129>3,C99*$D$140,C99) -> 1.747930942 | E144: =IF($E$129>3,C99*$E$140,C99) -> 1.747930942
B145: Februar | C145: =IF($C$129>1.5,C100*$C$140,C100) -> 1.49211885 | D145: =IF($D$129>3,C100*$D$140,C100) -> 1.49211885 | E145: =IF($E$129>3,C100*$E$140,C100) -> 1.49211885
B146: Marec | C146: 1.337474096 | D146: 1.337474096 | E146: 1.337474096
B147: April | C147: 0.8526662629 | D147: 0.8526662629 | E147: 0.8526662629
B148: Maj | C148: 0.7103994696 | D148: 0.7103994696 | E148: 0.7103994696
B149: Junij | C149: 0.6851221357 | D149: 0.6851221357 | E149: 0.6851221357
B150: Julij | C150: 0.6317445573 | D150: 0.6317445573 | E150: 0.6317445573
B151: Avgust | C151: 0.6231305267 | D151: 0.6231305267 | E151: 0.6231305267
B152: September | C152: 0.725438056 | D152: 0.725438056 | E152: 0.725438056
B153: Oktober | C153: 0.9007752103 | D153: 0.9007752103 | E153: 0.9007752103
B154: November | C154: 1.194505837 | D154: 1.194505837 | E154: 1.194505837
B155: December | C155: 1.35595113 | D155: 1.35595113 | E155: 1.35595113
B157: Člen 15.4
B158: "Za dnevne standardne produkte zmogljivosti za zagotovljeno zmogljivost in znotrajdnevne standardne produkte zmogljivosti za zagotovljeno zmogljivost se sezonski faktor smiselno izračuna po postopku iz odstavka 3(f) do (h)."
B161: Člen 15.5
B162: "Postopek izračuna sezonskih faktorjev za četrtletne standardne produkte zmogljivosti za zagotovljeno zmogljivost:
B163: "(a) izhodiščna stopnja zadevnih sezonskih faktorjev se izračuna kot ena izmed naslednjih vrednosti: (i) enaka aritmetični sredini ustreznih sezonskih faktorjev, ki se uporabljajo za tri ustrezne mesece; (ii) enaka ali višja od najnižje in enaka ali nižja od najvišje stopnje ustreznih sezonskih faktorjev, ki se uporabljajo za tri ustrezne mesece;"
B165: (b) postopek iz odstavka 3(f) do (h) se izvede smiselno z uporabo izračunanih vrednostmi iz točke (a).
C167: (i) Aritmetična sredina | D167: (ii) minimum <= sezonski faktor <= maksimum
B168: Plinski kvartal | C168: Sezonski faktor | D168: Sezonski faktorminimum | E168: Sezonski faktormaksimum
B169: Q2 | C169: =AVERAGE($C$144:$C$146) -> 1.525841296 | D169: =MIN($C$144:$C$146) -> 1.337474096 | E169: =MAX($C$144:$C$146) -> 1.747930942
B170: Q3 | C170: =AVERAGE($C$147:$C$149) -> 0.7493959561 | D170: =MIN($C$147:$C$149) -> 0.6851221357 | E170: =MAX($C$147:$C$149) -> 0.8526662629
B171: Q4 | C171: =AVERAGE($C$150:$C$152) -> 0.66010438 | D171: =MIN($C$150:$C$152) -> 0.6231305267 | E171: =MAX($C$150:$C$152) -> 0.725438056
B172: Q1 | C172: =AVERAGE($C$153:$C$155) -> 1.150410726 | D172: =MIN($C$153:$C$155) -> 0.9007752103 | E172: =MAX($C$153:$C$155) -> 1.35595113
B174: Člen 15.6
B175: "Za vse neletne standardne produkte zmogljivosti za zagotovljeno zmogljivost se izračunane vrednosti iz odstavkov 3 do 5 lahko zaokrožijo navzgor ali navzdol."
D177: Sezonski faktor
B178: Plinski mesec | C178: =C44 -> Prognoziran povprečni urni pretok v letu 2020 [kWh] | D178: Kvartalni | E178: Mesečni | F178: Dnevni | G178: Znotraj dneva
B179: Januar | C179: =ROUND(C45,3) -> 2720092.969 | D179: =ROUND($C$169,3) -> 1.526 | E179: =ROUND(C144,3) -> 1.748 | F179: =ROUND(D144,3) -> 1.748 | G179: =ROUND(E144,3) -> 1.748
B180: Februar | C180: =ROUND(C46,3) -> 2447765.704 | D180: =ROUND($C$169,3) -> 1.526 | E180: 1.492 | F180: 1.492 | G180: 1.492
B181: Marec | C181: 2275575 | D181: 1.526 | E181: 1.337 | F181: 1.337 | G181: 1.337
B182: April | C182: 1685596.5 | D182: =ROUND($C$170,3) -> 0.749 | E182: 0.853 | F182: 0.853 | G182: 0.853
B183: Maj | C183: 1492459.839 | D183: =ROUND($C$170,3) -> 0.749 | E183: 0.71 | F183: 0.71 | G183: 0.71
B184: Junij | C184: 1456843.5 | D184: 0.749 | E184: 0.685 | F184: 0.685 | G184: 0.685
B185: Julij | C185: 1380157.258 | D185: =ROUND($C$171,3) -> 0.66 | E185: 0.632 | F185: 0.632 | G185: 0.632
B186: Avgust | C186: 1367582.661 | D186: =ROUND($C$171,3) -> 0.66 | E186: 0.623 | F186: 0.623 | G186: 0.623
B187: September | C187: 1513449 | D187: 0.66 | E187: 0.725 | F187: 0.725 | G187: 0.725
B188: Oktober | C188: 1748417.661 | D188: =ROUND($C$172,3) -> 1.15 | E188: 0.901 | F188: 0.901 | G188: 0.901
B189: November | C189: 2110375.575 | D189: =ROUND($C$172,3) -> 1.15 | E189: 1.195 | F189: 1.195 | G189: 1.195
B190: December | C190: 2296484.891 | D190: 1.15 | E190: 1.356 | F190: 1.356 | G190: 1.356
